bitfinex/quotes_ETHUSD_20240927
["timestamp","ask_amount","ask_price","bid_price","bid_amount"]
[1727398838580,0.7601,2645.2,2644.6,2.64688]
[1727398838785,6.12911507,2645.1,2644.5,2.64693]
[1727398839143,0.7601,2645.0,2644.5,2.64693]
[1727398839372,3.48266507,2644.9,2644.3,2.64718]
[1727398840181,3.48266507,2644.9,2644.3,3.28024393]
[1727398840379,3.40666,2645.0,2644.3,3.28024393]
[1727398840746,3.40662,2645.0,2644.4,2.64709]
[1727398841085,2.6466,2644.9,2644.3,3.28025393]
[1727398841382,0.7601,2644.8,2644.4,2.64703]
[1727398841588,0.7601,2644.8,2644.3,2.64719]
[1727398842294,0.7601,2644.8,2644.4,2.6471]
[1727398842446,0.7601,2644.8,2644.4,3.176529]
[1727398842649,0.7601,2644.8,2644.5,2.647]
[1727398843081,0.7601,2644.8,2644.5,5.29393]
[1727398843281,0.7601,2644.8,2644.2,2.7229003]
[1727398843458,0.7601,2644.8,2644.7,2.6468]
[1727398843868,0.7601,2645.2,2644.7,2.6468]
[1727398844072,1.44900051,2645.2,2644.7,2.6468]
[1727398844456,0.7601,2645.2,2644.8,2.64662]
[1727398845371,0.7601,2645.2,2644.6,0.07561289]
[1727398845687,0.7601,2645.2,2644.8,2.64665]
[1727398846290,0.7601,2645.2,2644.8,5.2933]
[1727398846500,0.7601,2645.2,2644.8,3.17598]
[1727398846702,0.7601,2645.2,2644.8,3.17597]
[1727398846862,0.7601,2645.2,2644.8,5.29327]
[1727398847208,6.12850507,2645.7,2645.0,2.64643]
[1727398847500,6.12850507,2645.7,2645.0,3.41023]
[1727398847501,0.7601,2645.6,2645.0,3.41023]
[1727398847703,0.7601,2645.6,2645.1,2.64631]
[1727398848265,0.7601,2645.6,2645.0,2.987453]
[1727398848483,0.7601,2645.6,2645.1,2.72191597]
[1727398848703,0.7601,2645.6,2645.2,2.64623]
[1727398848908,0.7601,2645.6,2645.4,2.64601]
[1727398849111,2.64544,2646.1,2645.5,0.264601]
[1727398849112,0.7601,2645.9,2645.5,0.264601]
[1727398849267,0.7601,2645.9,2645.4,2.64601]
[1727398849613,0.7601,2645.9,2645.6,2.64588]
[1727398849786,0.7601,2646.4,2645.8,2.6457]
[1727398849970,0.7601,2646.4,2645.8,2.64561]
[1727398850168,0.7601,2646.4,2646.1,2.64539]
[1727398850492,0.4152455,2646.7,2646.2,2.64528]
[1727398850493,0.7601,2646.7,2646.2,2.64528]
[1727398850680,0.7601,2646.9,2646.5,2.64493]
[1727398850884,0.0381449,2647.0,2646.5,0.7638]
[1727398851189,0.0381449,2647.0,2646.8,2.64469]
[1727398852765,0.0381449,2647.0,2646.9,2.6446]
[1727398852970,0.0381449,2647.0,2646.8,2.64469]
[1727398853190,0.0381449,2647.0,2646.5,3.4087]
[1727398853499,0.0381449,2647.0,2646.8,2.64469]
[1727398855005,0.0381449,2647.0,2646.7,2.64471]
[1727398855318,0.0381449,2647.0,2646.8,2.6447]
[1727398856018,0.7976449,2647.0,2646.6,2.64483]
[1727398856880,0.0381449,2647.0,2646.7,0.07555923]
[1727398857396,0.0381449,2647.0,2646.8,2.64461]
[1727398858614,0.0381449,2647.0,2646.7,2.72034923]
[1727398858792,0.0381449,2647.0,2646.7,0.07555923]
[1727398858993,0.0381449,2647.0,2646.7,0.27203792]
[1727398859187,0.0381449,2647.0,2646.4,2.64507]
[1727398859188,0.0381449,2647.0,2646.5,2.64499]
[1727398861616,0.7595,2646.9,2646.3,3.41723]
[1727398861949,0.7595,2646.9,2646.4,2.64509]
[1727398862504,0.7595,2646.9,2646.5,2.645]
[1727398862710,0.7595,2646.9,2646.5,3.251219]
[1727398862942,0.7595,2646.9,2646.5,0.606219]
[1727398863238,0.7595,2646.9,2646.4,2.64509]
[1727398863436,3.4041,2646.9,2646.2,3.174308]
[1727398863607,6.0488,2646.9,2646.2,3.174308]
[1727398864115,0.7595,2646.4,2646.0,7.34]
[1727398865401,2.64522,2646.3,2646.0,7.34]
[1727398865609,4.24216507,2646.4,2645.6,2.64585]
[1727398865826,0.7595,2646.4,2645.8,2.64562]
[1727398866129,3.4046,2646.4,2645.8,2.64562]
[1727398866330,2.64526,2646.3,2645.7,2.64578]
[1727398866646,2.64526,2646.3,2645.6,2.72143339]
[1727398866840,3.25024,2646.3,2645.6,2.72143339]
[1727398867042,0.7595,2646.1,2645.6,2.64585]
[1727398867241,0.7595,2645.9,2645.3,7.34]
[1727398867414,3.40517,2645.9,2645.3,2.64619]
[1727398867621,3.40517,2645.9,2645.2,2.64627]
[1727398867622,2.6457,2645.8,2645.2,2.64627]
[1727398867949,0.7595,2645.6,2645.1,0.00514116]
[1727398868244,0.7595,2645.6,2645.2,2.64626]
[1727398871326,0.7595,2645.6,2645.1,2.99388428]
[1727398871722,3.40541,2645.6,2645.1,0.34751428]
[1727398871923,0.7595,2645.6,2645.1,2.65152116]
[1727398872626,3.40541,2645.6,2645.1,0.00514116]
[1727398872830,0.7595,2645.6,2645.1,2.65153116]
[1727398874062,0.7595,2645.6,2645.1,5.29785116]
[1727398874234,0.7595,2645.6,2645.2,2.64628]
[1727398874553,0.7595,2645.6,2645.1,3.18883161]
[1727398874554,0.7595,2645.6,2645.3,2.64616]
[1727398875556,0.7595,2645.6,2645.3,2.64612]
[1727398876257,2.64532,2646.2,2645.4,0.07559966]
[1727398876556,0.8256,2646.1,2645.5,2.646]
[1727398876858,0.8256,2646.1,2645.9,2.64551]
[1727398877152,0.8256,2646.4,2645.8,0.07558219]
[1727398877356,3.47071,2646.4,2645.8,0.07558219]
[1727398877659,3.47071,2646.4,2645.8,0.35089822]
[1727398878240,3.47071,2646.4,2645.8,2.99659822]
[1727398879619,6.11591,2646.4,2645.8,0.35089822]
[1727398879820,3.47071,2646.4,2645.7,2.6458]
[1727398880359,2.6452,2646.3,2645.7,2.6458]
[1727398880658,0.8256,2646.4,2645.8,2.64563]
[1727398880823,3.47076,2646.4,2645.7,2.72138139]
[1727398881022,3.47076,2646.4,2645.7,2.6458]
[1727398881253,0.8256,2646.4,2645.8,2.91022]
[1727398882158,3.47074,2646.4,2645.8,2.91022]
[1727398882550,0.8256,2646.4,2645.8,0.26458]
[1727398882737,0.8256,2646.4,2645.9,2.64558]
[1727398882940,0.8256,2646.4,2645.9,3.20872614]
[1727398883667,0.779,2646.7,2645.9,1.44752756]
[1727398883869,0.39546566,2646.8,2646.6,2.6449]
[1727398884066,0.8171449,2647.0,2646.6,2.6449]
[1727398884362,0.8171449,2647.0,2646.4,3.52944064]
[1727398884550,0.8171449,2647.0,2646.3,2.64519]
[1727398884754,0.8171449,2647.0,2646.1,0.8843683]
[1727398884974,3.42396,2646.6,2646.0,7.34]
[1727398885138,3.42396,2646.6,2645.9,2.64556]
[1727398885832,2.64516,2646.4,2645.7,5.29151]
[1727398886164,0.779,2646.5,2645.7,2.72132115]
[1727398886471,2.64511,2646.4,2645.8,2.64567]
[1727398887069,0.779,2646.5,2645.9,5.29113]
[1727398887270,0.779,2646.5,2645.9,6.08481]
[1727398887569,0.779,2646.9,2646.3,2.64514]
[1727398887768,0.779,2646.9,2646.1,3.45415]
[1727398887769,2.64471,2646.8,2646.1,3.45413]
[1727398887932,3.25533549,2646.8,2646.2,2.64529]
[1727398888132,3.25533549,2646.8,2646.3,2.64519]
[1727398888331,3.4236,2646.9,2646.3,2.64519]
[1727398890164,2.64472,2646.8,2646.1,2.64533]
[1727398890332,0.779,2646.7,2646.1,2.64533]
[1727398890535,2.6449,2646.6,2645.8,3.52999547]
[1727398890758,0.779,2646.7,2646.0,2.64542]
[1727398890976,0.779,2646.7,2646.2,2.64529]
[1727398891940,3.42381,2646.7,2646.2,2.64529]
[1727398893587,0.779,2646.7,2646.2,2.64522]
[1727398893872,0.779,2646.7,2646.3,2.64517]
[1727398894039,0.779,2646.7,2646.2,2.64522]
[1727398895840,3.42381,2646.7,2646.2,2.64522]
[1727398896564,3.42381,2646.7,2646.1,2.909922]
[1727398896951,0.779,2646.7,2646.2,2.64524]
[1727398897487,0.779,2646.7,2646.2,3.20831301]
[1727398898380,3.42381,2646.7,2646.2,0.56307301]
[1727398899013,3.42381,2646.7,2646.1,2.64533]
[1727398899507,3.42381,2646.7,2645.9,2.72108816]
[1727398900071,0.779,2646.7,2646.2,2.64529]
[1727398900304,0.779,2646.7,2646.3,2.64516]
[1727398901695,0.779,2646.7,2646.1,2.64533]
[1727398901900,3.42384,2646.7,2646.1,3.174407]
[1727398902966,3.42384,2646.7,2646.2,2.64526]
[1727398904400,0.779,2646.7,2646.2,2.64526]
[1727398904566,0.0381449,2647.0,2646.4,2.645]
[1727398904567,0.8171449,2647.0,2646.4,2.645]
[1727398904766,0.8171449,2647.0,2646.5,0.34006144]
[1727398905099,3.4616549,2647.0,2646.5,0.34006144]
[1727398905601,0.8171449,2647.0,2646.5,2.90949]
[1727398908767,0.779,2646.9,2646.1,3.174447]
[1727398908968,0.779,2646.6,2646.1,0.529077]
[1727398909200,0.779,2646.6,2646.1,3.174477]
[1727398910099,0.779,2646.6,2646.1,5.819807]
[1727398910486,0.779,2646.6,2646.2,3.9612207]
[1727398914888,0.779,2646.6,2646.2,2.64524]
[1727398916687,0.779,2646.6,2646.2,5.29047]
[1727398916886,2.64473,2646.8,2646.2,2.64523]
[1727398917084,3.42683,2646.8,2646.2,2.64523]
[1727398917600,3.42683,2646.8,2646.2,5.29046]
[1727398917777,3.42683,2646.8,2646.2,5.87997056]
[1727398918704,3.42683,2646.8,2646.2,3.23474056]
[1727398919224,3.42683,2646.8,2646.3,0.781]
[1727398919888,3.42683,2646.8,2646.6,2.64489]
[1727398919889,0.7821,2646.8,2646.6,2.64489]
[1727398920305,6.16539997,2647.0,2646.4,2.64506]
[1727398920615,3.42736,2646.3,2645.7,7.34]
[1727398920825,3.42736,2646.3,2645.6,3.42689]
[1727398921033,3.42736,2646.3,2645.7,2.64572]
[1727398921539,0.7821,2646.3,2645.8,2.64569]
[1727398921680,0.7821,2646.3,2645.7,0.61481918]
[1727398921882,3.42732,2646.3,2645.7,2.6458]
[1727398922503,0.7821,2646.2,2645.5,2.646]
[1727398922713,0.7821,2645.8,2645.2,4.21387078]
[1727398922917,2.64611,2645.4,2645.1,0.00514116]
[1727398923115,0.7821,2645.3,2645.1,0.00514116]
[1727398924384,3.4284,2645.2,2645.1,0.00514116]
[1727398924610,6.4284,2645.2,2645.1,0.00514116]
[1727398926685,3.4284,2645.2,2645.1,0.00514116]
[1727398927989,0.7821,2645.2,2645.1,0.00514116]
[1727398928186,3.771238,2645.2,2645.1,0.00514116]
[1727398934131,3.4284,2645.2,2645.1,0.00514116]
[1727398934628,0.7821,2645.2,2645.1,0.00514116]
[1727398934791,3.4284,2645.2,2645.1,0.00514116]
[1727398935432,0.7821,2645.2,2645.1,0.00514116]
[1727398935736,2.64621,2645.3,2645.1,0.00514116]
[1727398935897,3.86324858,2645.3,2645.1,0.00423618]
[1727398936093,0.807,2645.4,2645.1,0.00423618]
[1727398936294,2.64593,2645.6,2645.1,0.00423618]
[1727398936295,0.807,2645.6,2645.1,0.00423618]
[1727398936519,3.45292,2645.6,2645.1,0.00423618]
[1727398936724,2.64602,2645.5,2645.1,0.00423618]
[1727398936967,4.14647851,2645.6,2645.1,0.00423618]
[1727398937258,6.79246851,2645.6,2645.1,0.00423618]
[1727398937444,4.14647851,2645.6,2645.1,0.00423618]
[1727398937840,0.807,2645.6,2645.1,0.79663618]
[1727398938049,0.807,2645.6,2645.1,3.44293618]
[1727398938237,3.4529,2645.6,2645.1,3.44293618]
[1727398938634,2.646,2645.5,2645.1,0.00423618]
[1727398938962,2.6461,2645.4,2644.9,2.64656]
[1727398943365,0.807,2645.6,2645.1,2.64633]
[1727398943662,3.41455,2645.8,2645.1,2.64631]
[1727398943860,6.93776051,2645.8,2645.1,2.64631]
[1727398944462,2.64581,2645.7,2645.1,2.64631]
[1727398945547,4.29197051,2645.8,2645.1,2.72191279]
[1727398945862,4.29197051,2645.8,2645.1,2.64631]
[1727398946178,2.64591,2645.6,2645.1,2.64631]
[1727398948048,2.64591,2645.6,2645.0,2.64649]
[1727398948255,2.64591,2645.6,2644.9,2.64654]
[1727398948433,2.64591,2645.6,2644.9,5.29307]
[1727398948930,2.64591,2645.6,2644.9,2.64653]
[1727398949131,2.64591,2645.6,2645.0,2.64649]
[1727398949367,3.32970236,2645.6,2645.0,2.64649]
[1727398950333,5.97569236,2645.6,2644.9,2.64653]
[1727398950762,3.32970236,2645.6,2645.0,2.64647]
[1727398951060,3.32970236,2645.6,2645.0,2.64646]
[1727398951366,3.32970236,2645.6,2644.9,2.64653]
[1727398951563,2.64591,2645.6,2644.9,5.64452374]
[1727398952065,2.64591,2645.6,2645.0,2.64648]
[1727398952270,2.64591,2645.6,2645.1,2.6464]
[1727398952475,0.39540475,2645.9,2645.3,2.64613]
[1727398952639,0.39540475,2645.9,2645.4,2.99467342]
[1727398953178,0.39540475,2645.9,2645.5,0.7641]
[1727398953469,2.0381449,2647.0,2645.8,0.7641]
[1727398953470,3.41393,2646.4,2645.8,0.7641]
[1727398953641,2.64497,2646.6,2645.9,0.07558067]
[1727398953973,0.39537399,2646.5,2645.9,0.07558067]
[1727398954178,0.39537399,2646.5,2646.1,2.64533]
[1727398954476,0.39537399,2646.5,2646.3,2.6452]
[1727398954635,3.4514849,2647.0,2646.3,2.6452]
[1727398954971,0.43352185,2647.0,2646.5,2.64497]
[1727398955146,0.0381449,2647.0,2646.5,2.64497]
[1727398955349,0.0381449,2647.0,2646.3,2.6452]
[1727398956171,0.30640639,2647.0,2646.4,0.07556417]
[1727398956366,2.95091639,2647.0,2646.3,2.72076417]
[1727398957167,2.64461,2646.9,2646.3,2.72076417]
[1727398957372,2.6447,2646.8,2646.2,0.7641]
[1727398957572,0.7688,2646.7,2646.0,3.4851017]
[1727398957872,0.7688,2646.7,2646.0,0.7641]
[1727398957873,2.645,2646.5,2646.0,0.7641]
[1727398958066,2.64513,2646.4,2646.0,0.7641]
[1727398958271,2.64513,2646.4,2645.6,3.40994]
[1727398958480,2.64513,2646.4,2645.7,2.64573]
[1727398958637,2.64513,2646.4,2645.6,0.7641]
[1727398958831,2.6452,2646.3,2645.6,0.7641]
[1727398959271,2.6452,2646.3,2645.6,3.41]
[1727398959476,3.4141,2646.2,2645.6,0.7641]
[1727398959677,3.4141,2646.2,2645.4,7.34]
[1727398959678,2.64557,2646.0,2645.4,7.34]
[1727398959875,2.987007,2646.0,2645.3,3.41027]
[1727398960681,2.987007,2646.0,2645.4,2.6461]
[1727398960879,2.987007,2646.0,2645.4,2.72169198]
[1727398963172,3.41411,2646.2,2645.5,2.646]
[1727398964255,2.64542,2646.1,2645.5,2.646]
[1727398967379,3.41411,2646.2,2645.5,2.646]
[1727398967691,3.414,2646.4,2645.8,2.64568]
[1727398968470,0.7688,2646.4,2645.8,2.64568]
[1727398968689,0.7688,2646.4,2645.9,2.72110255]
[1727398968994,0.7688,2646.4,2645.9,2.64552]
[1727398969178,0.7688,2646.4,2645.8,3.48536255]
[1727398969371,0.7688,2646.4,2645.8,6.05539]
[1727398969771,0.7688,2646.4,2645.8,3.40971]
[1727398970094,0.7688,2646.4,2645.9,2.64559]
[1727398970397,0.7688,2646.4,2645.8,3.78469903]
[1727398970595,3.41391,2646.4,2645.8,3.78469903]
[1727398970795,3.41391,2646.4,2645.8,6.43032903]
[1727398971012,3.41391,2646.4,2645.8,3.78469903]
[1727398971369,3.41391,2646.4,2645.8,3.40971]
[1727398971898,3.41391,2646.4,2645.6,2.64589]
[1727398972069,6.12802507,2646.2,2645.4,3.41016]
[1727398972273,0.7688,2646.1,2645.5,2.64598]
[1727398972462,2.64556,2646.0,2645.4,3.41018]
[1727398972860,2.64596,2645.6,2645.0,3.4105]
[1727398973190,2.64598,2645.6,2645.0,2.64649]
[1727398973371,3.41454,2645.8,2645.2,2.64629]
[1727398974247,2.6458,2645.7,2645.1,2.64638]
[1727398974402,3.41454,2645.8,2645.1,2.64638]
[1727398975296,3.41454,2645.8,2645.1,2.72198235]
[1727398975623,2.6458,2645.7,2645.0,2.72200127]
[1727398975918,3.41454,2645.8,2645.1,2.6464]
[1727398976125,3.41454,2645.8,2645.2,0.07559989]
[1727398976690,3.41454,2645.8,2645.2,0.85669989]
[1727398977008,3.41454,2645.8,2645.2,3.42732]
[1727398977212,2.64553,2646.0,2645.4,2.64602]
[1727398977396,0.7816,2646.1,2645.5,2.64599]
[1727398978406,2.64535,2646.2,2645.6,2.72147228]
[1727398978629,2.64535,2646.2,2645.6,2.64588]
[1727398979995,2.64535,2646.2,2645.3,2.64616]
[1727398980223,2.64544,2646.1,2645.4,0.342726]
[1727398980430,2.64544,2646.1,2645.4,2.988786]
[1727398980722,0.7816,2646.0,2645.2,0.7811]
[1727398980928,2.64562,2645.9,2645.3,2.6462]
[1727398982424,2.6458,2645.7,2645.2,0.7811]
[1727398982852,2.64562,2645.9,2645.2,0.7811]
[1727398983032,5.2913,2645.9,2645.2,3.77769278]
[1727398983193,2.64562,2645.9,2645.2,3.77769278]
[1727398986139,2.64594,2645.6,2645.0,0.7811]
[1727398986440,0.7816,2645.5,2645.0,0.7811]
[1727398986629,0.7816,2645.5,2645.0,3.42758]
[1727398987136,0.7816,2645.5,2645.0,0.7811]
[1727398987452,4.035014,2645.5,2644.9,2.64653]
[1727398987641,4.035014,2645.5,2644.8,0.7811]
[1727398987642,2.64616,2645.4,2644.8,0.7811]
[1727398987931,2.64616,2645.4,2644.7,2.64674]
[1727398988234,3.0496714,2645.4,2644.7,2.64674]
[1727398988434,3.0496714,2645.4,2644.8,2.64662]
[1727398988643,0.7816,2645.5,2645.1,2.64637]
[1727398988800,2.64574,2645.8,2645.3,2.6462]
[1727398989000,2.64574,2645.8,2645.1,3.42747]
[1727398989001,2.64574,2645.8,2645.2,2.64628]
[1727398989455,2.64574,2645.8,2645.1,3.42747]
[1727398989870,2.64574,2645.8,2645.1,6.0738]
[1727398990026,2.64574,2645.8,2645.2,0.61494065]
[1727398990759,2.64574,2645.8,2645.1,6.07375]
[1727398991260,2.64574,2645.8,2645.2,2.64629]
[1727398991431,5.29153,2645.8,2645.2,2.64629]
[1727398991634,2.64574,2645.8,2645.2,2.64629]
[1727398992546,2.6459,2645.6,2645.0,2.64642]
[1727398993364,2.64574,2645.8,2644.9,3.50064506]
[1727398993524,2.64574,2645.8,2645.1,5.29266]
[1727398994037,5.29153,2645.8,2645.1,2.64633]
[1727398994242,2.64581,2645.7,2645.1,3.60173551]
[1727398998060,0.7816,2645.9,2645.2,3.55827007]
[1727398998242,0.7816,2645.9,2645.5,2.64592]
[1727399000654,0.7816,2645.9,2645.3,3.42468]
[1727399000880,0.7816,2645.9,2645.1,2.64635]
[1727399000881,2.64583,2645.7,2645.1,2.64631]
[1727399001080,2.988573,2645.7,2645.1,2.64631]
[1727399002364,2.988573,2645.7,2645.1,5.29265]
[1727399002956,2.988573,2645.7,2645.2,2.64629]
[1727399003158,2.64583,2645.7,2645.2,2.64629]
[1727399004253,3.42724,2645.9,2645.2,2.64629]
[1727399004464,2.6457,2645.8,2645.2,2.64629]
[1727399004975,3.42724,2645.9,2645.1,2.64631]
[1727399005146,2.64581,2645.7,2645.2,2.64629]
[1727399005346,2.988434,2645.8,2645.2,2.64629]
[1727399005645,0.7816,2645.9,2645.4,2.64603]
[1727399005863,0.7816,2645.9,2645.5,2.64597]
[1727399006884,0.7816,2645.9,2645.4,0.8179]
[1727399007046,0.7816,2645.9,2645.4,3.46391]
[1727399009473,0.8007,2646.2,2645.7,2.64578]
[1727399009671,0.8007,2646.2,2645.8,2.64569]
[1727399009874,0.8007,2646.6,2646.0,3.46334]
[1727399010074,0.8007,2646.6,2646.2,2.64523]
[1727399010260,0.8007,2646.6,2646.1,2.64533]
[1727399010462,3.44563,2646.6,2646.0,3.46339]
[1727399010791,0.8007,2646.6,2645.9,2.64552]
[1727399010960,0.8007,2646.6,2646.0,2.991822]
[1727399011149,0.8007,2646.6,2646.0,2.64548]
[1727399011355,0.8007,2646.6,2645.9,2.64552]
[1727399011356,2.64507,2646.5,2645.9,2.64552]
[1727399011766,0.8007,2646.6,2646.0,2.64549]
[1727399012291,0.8007,2646.6,2646.1,2.64538]
[1727399013663,0.8007,2646.6,2645.9,2.64552]
[1727399013865,3.44563,2646.6,2646.0,0.35390019]
[1727399014181,3.44563,2646.6,2646.0,2.99936019]
[1727399014495,0.8007,2646.6,2646.1,2.64539]
[1727399016396,3.44581,2646.4,2645.6,0.8179]
[1727399016700,2.64552,2646.0,2645.5,2.64591]
[1727399017476,3.44611,2646.1,2645.5,2.64591]
[1727399018176,0.8007,2646.1,2645.5,2.64591]
[1727399019101,3.4461,2646.1,2645.5,2.64591]
[1727399019309,2.64551,2646.0,2645.5,2.64591]
[1727399019459,0.8007,2645.9,2645.1,4.13004371]
[1727399019660,3.44648,2645.8,2645.1,2.64636]
[1727399019896,6.09227,2645.8,2645.1,2.64636]
[1727399020105,2.64582,2645.7,2645.1,2.64636]
[1727399020772,3.44648,2645.8,2645.2,2.64628]
[1727399021301,6.09228,2645.8,2645.1,2.64636]
[1727399021667,3.44648,2645.8,2645.1,2.64636]
[1727399021867,3.44648,2645.8,2645.2,2.6463]
[1727399022067,6.701461,2645.8,2645.1,2.64636]
[1727399022281,4.055681,2645.8,2645.1,2.64636]
[1727399022468,6.701461,2645.8,2645.1,2.64636]
[1727399022796,4.055681,2645.8,2645.1,2.64636]
[1727399023381,0.8007,2645.8,2645.1,0.07560235]
[1727399023694,0.8007,2645.8,2645.3,2.6461]
[1727399023695,3.4464,2645.8,2645.3,2.6461]
[1727399026383,0.8007,2645.8,2645.3,2.6461]
[1727399027141,0.8007,2645.8,2645.5,2.64594]
[1727399027423,0.8007,2645.8,2645.3,2.99386267]
[1727399027727,0.8007,2645.8,2645.4,2.64606]
[1727399028920,0.8007,2645.8,2645.3,5.63998267]
[1727399029087,0.8007,2645.8,2645.4,2.64608]
[1727399030106,0.8007,2646.1,2645.5,2.64599]
[1727399030310,0.8007,2646.1,2645.5,2.72158091]
[1727399031224,0.8007,2646.1,2645.6,2.64588]
[1727399035121,2.64561,2645.9,2645.4,0.56399427]
[1727399035320,0.8007,2646.1,2645.3,2.64611]
[1727399035321,2.64556,2646.0,2645.3,2.64611]
[1727399035923,5.29115,2646.0,2645.3,2.64611]
[1727399036315,2.64556,2646.0,2645.3,2.64611]
[1727399036500,0.8244,2645.7,2645.3,2.64611]
[1727399036823,0.8244,2645.7,2645.3,3.175356]
[1727399039001,0.8244,2645.7,2645.3,0.529246]
[1727399039332,0.8244,2645.7,2645.1,5.29269]
[1727399039619,0.8244,2645.7,2645.1,5.29267]
[1727399039823,0.8244,2645.7,2645.2,2.64622]
[1727399041410,0.8244,2645.7,2645.3,2.64618]
[1727399046403,0.8244,2645.7,2645.2,2.64622]
[1727399046618,0.8244,2645.7,2645.2,5.29245]
[1727399046935,0.8244,2645.7,2645.3,2.64619]
[1727399047954,2.64597,2645.6,2645.0,2.64644]
[1727399048231,0.8244,2645.5,2645.0,2.64649]
[1727399048836,0.8244,2645.5,2645.2,2.64629]
[1727399051364,0.8244,2645.5,2645.3,2.64618]
[1727399051733,0.8248,2645.8,2645.5,2.64594]
[1727399054471,0.8248,2646.1,2645.8,2.64563]
[1727399054688,0.8248,2646.1,2645.9,0.42537671]
[1727399054847,0.8248,2646.1,2645.8,2.64563]
[1727399055767,9.3034904,2646.9,2646.0,2.6455]
[1727399055973,9.3034904,2646.9,2645.9,1.60813712]
[1727399055974,2.64502,2646.5,2645.8,0.756]
[1727399056169,2.64502,2646.5,2645.7,1.60813712]
[1727399056170,1.089302,2646.4,2645.7,2.64578]
[1727399056333,2.64526,2646.3,2645.6,2.64585]
[1727399056536,5.29055,2646.3,2645.6,2.64585]
[1727399056743,0.8248,2645.8,2645.2,2.64627]
[1727399056948,2.64581,2645.7,2645.0,5.29289]
[1727399057260,2.64581,2645.7,2645.0,2.64644]
[1727399058484,2.64581,2645.7,2645.2,2.64629]
[1727399058787,3.47087,2645.5,2644.8,3.4316257]
[1727399058946,3.47087,2645.5,2644.9,2.64658]
[1727399059451,2.64607,2645.5,2644.7,2.64679]
[1727399059651,0.8248,2644.7,2644.2,3.4322257]
[1727399059960,0.8248,2644.7,2644.4,2.64709]
[1727399063394,0.8248,2644.7,2644.2,2.64723]
[1727399063568,3.47168,2644.7,2644.0,2.65168618]
[1727399063755,3.47168,2644.7,2644.0,3.42327429]
[1727399063956,2.64697,2644.6,2644.0,3.42327429]
[1727399066677,2.64697,2644.6,2644.0,2.65168618]
[1727399071080,0.8248,2644.7,2644.1,2.64738]
[1727399071498,0.8248,2644.7,2644.2,2.64722]
[1727399072012,3.47164,2644.7,2644.0,2.65166618]
[1727399072309,3.47164,2644.7,2644.0,5.29910618]
[1727399072803,3.47164,2644.7,2644.1,2.64738]
[1727399072804,0.8248,2644.7,2644.1,2.64738]
[1727399074514,0.8248,2644.7,2644.0,3.26289129]
[1727399074818,2.6469,2644.6,2644.0,2.65166618]
[1727399076312,2.6469,2644.6,2644.1,2.64739]
[1727399076508,2.6469,2644.6,2644.0,2.65166618]
[1727399077474,0.8248,2644.7,2644.1,2.64738]
[1727399077927,0.8248,2644.7,2644.2,5.29446]
[1727399078133,0.8248,2644.7,2644.3,2.64712]
[1727399078277,0.8248,2644.7,2644.4,2.64709]
[1727399079201,0.8248,2644.7,2644.4,2.64704]
[1727399079402,0.8248,2644.7,2644.4,2.64703]
[1727399079604,0.798,2645.0,2644.5,2.911693]
[1727399079806,3.44452,2645.0,2644.4,2.64703]
[1727399084019,6.09109,2645.0,2644.4,2.64703]
[1727399084397,6.09109,2645.0,2644.3,0.775]
[1727399084398,2.64673,2644.8,2644.3,0.775]
[1727399084721,2.64673,2644.8,2644.2,2.64727]
[1727399085080,3.44482,2644.7,2644.1,2.64734]
[1727399086424,0.798,2644.7,2644.1,2.64734]
[1727399086582,0.798,2644.7,2644.2,0.52990362]
[1727399087199,3.44487,2644.7,2644.2,0.52990362]
[1727399087420,3.44487,2644.7,2644.1,2.64734]
[1727399088502,2.64692,2644.6,2644.0,0.00423618]
[1727399088833,0.798,2644.5,2644.0,0.00423618]
[1727399089936,0.798,2644.5,2644.1,2.64732]
[1727399090295,0.798,2644.5,2644.1,3.34200807]
[1727399090841,0.798,2644.5,2644.1,0.69468807]
[1727399091129,0.798,2644.5,2644.0,2.65169618]
[1727399091328,3.445,2644.5,2644.0,0.00423618]
[1727399091928,0.798,2644.5,2644.0,0.00423618]
[1727399093700,2.64713,2644.4,2644.0,0.00423618]
[1727399093940,0.766,2644.2,2644.0,0.00423618]
[1727399098650,2.6474,2644.1,2644.0,0.00423618]
[1727399099621,0.766,2644.2,2644.0,0.00423618]
[1727399099843,3.4133,2644.2,2644.0,0.00423618]
[1727399100755,0.766,2644.2,2644.0,0.00423618]
[1727399102468,0.766,2644.7,2644.1,3.40337]
[1727399102672,2.64626,2645.3,2644.6,2.64684]
[1727399102827,0.766,2645.4,2644.7,2.72236961]
[1727399103023,0.766,2645.4,2644.9,2.64651]
[1727399103347,3.41183,2645.7,2644.9,7.17062574]
[1727399103551,0.766,2645.7,2645.4,2.64606]
[1727399103872,3.41159,2646.0,2645.3,6.88939874]
[1727399104053,0.766,2646.0,2645.3,4.11027207]
[1727399104239,0.766,2646.0,2645.4,2.64607]
[1727399104569,2.6454,2646.1,2645.5,2.64597]
[1727399106026,3.41121,2646.3,2645.5,2.64597]
[1727399106255,3.41121,2646.3,2645.7,2.64579]
[1727399106461,0.766,2646.6,2645.8,0.83158752]
[1727399106661,0.766,2646.6,2645.9,3.48728874]
[1727399106966,0.766,2646.6,2645.9,2.64558]
[1727399106967,3.41091,2646.6,2645.9,2.64558]
[1727399107126,2.64513,2646.4,2645.8,0.264579]
[1727399107329,2.6452,2646.3,2645.6,2.64587]
[1727399107555,4.25328874,2646.6,2645.7,2.6458]
[1727399107556,2.6451,2646.4,2645.7,2.6458]
[1727399107769,6.89821874,2646.6,2645.5,3.40196]
[1727399107971,2.64521,2646.3,2645.6,0.38961343]